fUSD/lending_fUSD_20240420
["ID","MTS","AMOUNT","RATE_DAILY","PERIOD"]
[323044486,1713615055418,-500.0,0.00015342,2]
[323044487,1713615055427,-876.66,0.00015342,2]
[323044488,1713615055438,-500.0,0.00015342,2]
[323044489,1713615055447,-502.08,0.00015342,2]
[323044490,1713615055459,-500.0,0.00015342,2]
[323044491,1713615055469,-748.28,0.00015342,2]
[323044492,1713615055479,-500.0,0.00015342,2]
[323044493,1713615055488,-500.0,0.00015342,2]
[323044494,1713615055497,-500.0,0.00015342,2]
[323044495,1713615055507,-571.83,0.00015342,2]
[323044496,1713615055517,-561.89,0.00015342,2]
[323044497,1713615055527,-500.0,0.00015342,2]
[323044498,1713615055537,-500.0,0.00015342,2]
[323044499,1713615055547,-1220.03,0.00015342,2]
[323044500,1713615055556,-500.0,0.00015342,2]
[323044501,1713615055565,-500.0,0.00015342,2]
[323044502,1713615055574,-616.44,0.00015342,2]
[323044503,1713615055583,-500.0,0.00015342,2]
[323044504,1713615055592,-500.0,0.00015342,2]
[323044505,1713615055601,-500.0,0.00015342,2]
[323044506,1713615055610,-500.0,0.00015342,2]
[323044507,1713615055619,-769.87,0.00015342,2]
[323044508,1713615055629,-500.0,0.00015342,2]
[323044509,1713615055638,-612.99,0.00015342,2]
[323044510,1713615055647,-500.0,0.00015342,2]
[323044511,1713615055656,-500.0,0.00015342,2]
[323044512,1713615055667,-500.44,0.00015342,2]
[323044513,1713615055676,-708.57,0.00015342,2]
[323044514,1713615055686,-500.0,0.00015342,2]
[323044515,1713615055695,-556.29,0.00015342,2]
[323044516,1713615055704,-500.0,0.00015342,2]
[323044517,1713615055713,-500.0,0.00015342,2]
[323044518,1713615055724,-500.0,0.00015342,2]
[323044519,1713615055734,-500.0,0.00015342,2]
[323044520,1713615055746,-500.0,0.00015342,2]
[323044521,1713615055756,-627.14,0.00015342,2]
[323044522,1713615055768,-151.0,0.00015342,2]
[323044523,1713615055777,-500.0,0.00015342,2]
[323044524,1713615055788,-500.0,0.00015342,2]
[323044525,1713615055799,-500.0,0.00015342,2]
[323044526,1713615055809,-500.0,0.00015342,2]
[323044527,1713615055819,-531.26,0.00015342,2]
[323044528,1713615055829,-500.0,0.00015342,2]
[323044529,1713615055839,-500.0,0.00015342,2]
[323044530,1713615055847,-505.87,0.00015342,2]
[323044531,1713615055857,-151.0,0.00015342,2]
[323044532,1713615055869,-500.0,0.00015342,2]
[323044533,1713615055878,-803.54,0.00015342,2]
[323044534,1713615055887,-500.0,0.00015342,2]
[323044535,1713615055897,-660.57,0.00015342,2]
[323044536,1713615055905,-598.11,0.00015342,2]
[323044537,1713615055916,-578.39,0.00015342,2]
[323044538,1713615055925,-641.19,0.00015342,2]
[323044539,1713615055934,-500.0,0.00015342,2]
[323044540,1713615055943,-500.0,0.00015342,2]
[323044541,1713615055952,-547.06,0.00015342,2]
[323044542,1713615055961,-500.0,0.00015342,2]
[323044543,1713615055970,-951.98,0.00015342,2]
[323044544,1713615055979,-500.0,0.00015342,2]
[323044545,1713615055988,-151.0,0.00015342,2]
[323044546,1713615055997,-500.0,0.00015342,2]
[323044547,1713615056007,-500.0,0.00015342,2]
[323044548,1713615056018,-500.0,0.00015342,2]
[323044549,1713615056027,-862.96,0.00015342,2]
[323044550,1713615056037,-595.97,0.00015342,2]
[323044551,1713615056046,-500.0,0.00015342,2]
[323044552,1713615056056,-500.0,0.00015342,2]
[323044553,1713615056064,-538.98,0.00015342,2]
[323044554,1713615056073,-500.0,0.00015342,2]
[323044555,1713615056082,-151.0,0.00015342,2]
[323044556,1713615056091,-500.0,0.00015342,2]
[323044557,1713615056100,-500.0,0.00015342,2]
[323044558,1713615056109,-500.0,0.00015342,2]
[323044559,1713615056118,-500.0,0.00015342,2]
[323044560,1713615056127,-595.2,0.00015342,2]
[323044561,1713615056136,-500.0,0.00015342,2]
[323044562,1713615056146,-558.21,0.00015342,2]
[323044563,1713615056156,-500.0,0.00015342,2]
[323044564,1713615056165,-564.88,0.00015342,2]
[323044565,1713615056174,-500.0,0.00015342,2]
[323044566,1713615056183,-500.0,0.00015342,2]
[323044567,1713615056192,-500.0,0.00015342,2]
[323044568,1713615056201,-500.0,0.00015342,2]
[323044569,1713615056210,-500.0,0.00015342,2]
[323044570,1713615056223,-500.0,0.00015342,2]
[323044571,1713615056237,-714.19,0.00015342,2]
[323044572,1713615056250,-500.0,0.00015342,2]
[323044573,1713615056264,-500.0,0.00015342,2]
[323044574,1713615056275,-500.0,0.00015342,2]
[323044575,1713615056285,-500.0,0.00015342,2]
[323044576,1713615056299,-1206.79,0.00015342,2]
[323044577,1713615056312,-500.0,0.00015342,2]
[323044578,1713615056325,-500.0,0.00015342,2]
[323044579,1713615056338,-500.0,0.00015342,2]
[323044580,1713615056351,-500.0,0.00015342,2]
[323044581,1713615056363,-500.0,0.00015342,2]
[323044582,1713615056378,-596.15091914,0.00015342,2]
[323044583,1713615056388,-1382.29,0.00015342,2]
[323044584,1713615056399,-583.86,0.00015342,2]
[323044585,1713615056411,-500.0,0.00015342,2]
[323044586,1713615056423,-500.0,0.00015342,2]
[323044587,1713615056434,-500.0,0.00015342,2]
[323044588,1713615056446,-729.34,0.00015342,2]
[323044589,1713615056459,-500.0,0.00015342,2]
[323044590,1713615056472,-475.19564073,0.00015342,2]
[323044591,1713615056485,-559.59,0.00015342,2]
[323044592,1713615056496,-500.0,0.00015342,2]
[323044593,1713615056507,-612.49,0.00015342,2]
[323044594,1713615056518,-812.58,0.00015342,2]
[323044595,1713615056532,-500.0,0.00015342,2]
[323044596,1713615056543,-20000.0,0.00015342,5]
[323044597,1713615056556,-500.0,0.00015342,2]
[323044598,1713615056568,-500.0,0.00015342,2]
[323044599,1713615056579,-500.0,0.00015342,2]
[323044600,1713615056591,-500.0,0.00015342,2]
[323044601,1713615056602,-500.0,0.00015342,2]
[323044602,1713615056614,-590.98,0.00015342,2]
[323044603,1713615056626,-777.99,0.00015342,2]
[323044604,1713615056638,-922.4,0.00015342,2]
[323044605,1713615056651,-500.0,0.00015342,2]
[323044606,1713615056664,-500.0,0.00015342,2]
[323044607,1713615056676,-500.0,0.00015342,2]
[323044608,1713615056689,-500.0,0.00015342,2]
[323044609,1713615056702,-500.0,0.00015342,2]
[323044610,1713615056712,-610.81,0.00015342,2]
[323044611,1713615056722,-500.0,0.00015342,2]
[323044612,1713615056732,-943.86,0.00015342,2]
[323044613,1713615056742,-583.14,0.00015342,2]
[323044614,1713615056754,-500.0,0.00015342,2]
[323044615,1713615056766,-500.0,0.00015342,2]
[323044616,1713615056777,-500.0,0.00015342,2]
[323044617,1713615056789,-500.0,0.00015342,2]
[323044618,1713615056802,-500.0,0.00015342,2]
[323044619,1713615056811,-500.0,0.00015342,2]
[323044620,1713615056822,-500.0,0.00015342,2]
[323044621,1713615056832,-581.68,0.00015342,2]
[323044622,1713615056843,-500.0,0.00015342,2]
[323044623,1713615056855,-500.0,0.00015342,2]
[323044624,1713615056866,-500.0,0.00015342,2]
[323044625,1713615056877,-500.0,0.00015342,2]
[323044626,1713615056888,-500.0,0.00015342,2]
[323044627,1713615056899,-500.0,0.00015342,2]
[323044628,1713615056910,-500.0,0.00015342,2]
[323044629,1713615056922,-500.0,0.00015342,2]
[323044630,1713615056932,-500.0,0.00015342,2]
[323044631,1713615056943,-558.25,0.00015342,2]
[323044632,1713615056955,-516.13,0.00015342,2]
[323044633,1713615056971,-772.56,0.00015342,2]
[323044634,1713615056981,-500.0,0.00015342,2]
[323044635,1713615056993,-500.0,0.00015342,2]
[323044636,1713615057004,-500.0,0.00015342,2]
[323044637,1713615057016,-500.0,0.00015342,2]
[323044638,1713615057028,-674.79,0.00015342,2]
[323044639,1713615057039,-654.49,0.00015342,2]
[323044640,1713615057050,-500.0,0.00015342,2]
[323044641,1713615057061,-983.5,0.00015342,2]
[323044642,1713615057072,-500.0,0.00015342,2]
[323044643,1713615057083,-588.05,0.00015342,2]
[323044644,1713615057094,-500.0,0.00015342,2]
[323044645,1713615057105,-500.0,0.00015342,2]
[323044646,1713615057119,-500.0,0.00015342,2]
[323044647,1713615057130,-500.0,0.00015342,2]
[323044648,1713615057143,-500.0,0.00015342,2]
[323044649,1713615057156,-500.0,0.00015342,2]
[323044650,1713615057168,-500.0,0.00015342,2]
[323044651,1713615057179,-500.0,0.00015342,2]
[323044652,1713615057190,-500.0,0.00015342,2]
[323044653,1713615057201,-500.0,0.00015342,2]
[323044654,1713615057212,-500.0,0.00015342,2]
[323044655,1713615057223,-151.0,0.00015342,2]
[323044656,1713615057234,-747.33,0.00015342,2]
[323044657,1713615057245,-151.0,0.00015342,2]
[323044658,1713615057257,-500.0,0.00015342,2]
[323044659,1713615057268,-500.0,0.00015342,2]
[323044660,1713615057280,-500.0,0.00015342,2]
[323044661,1713615057291,-500.0,0.00015342,2]
[323044662,1713615057304,-692.8,0.00015342,2]
[323044663,1713615057316,-500.0,0.00015342,2]
[323044664,1713615057327,-723.5,0.00015342,2]
[323044665,1713615057338,-151.0,0.00015342,2]
[323044666,1713615057350,-500.0,0.00015342,2]
[323044667,1713615057361,-576.47,0.00015342,2]
[323044668,1713615057374,-151.0,0.00015342,2]
[323044669,1713615057387,-500.0,0.00015342,2]
[323044670,1713615057398,-946.8,0.00015342,2]
[323044671,1713615057411,-151.0,0.00015342,2]
[323044672,1713615057424,-500.0,0.00015342,2]
[323044673,1713615057437,-500.0,0.00015342,2]
[323044674,1713615057449,-500.0,0.00015342,2]
[323044675,1713615057462,-500.0,0.00015342,2]
[323044676,1713615057475,-942.76,0.00015342,2]
[323044677,1713615057486,-500.0,0.00015342,2]
[323044678,1713615057498,-572.56,0.00015342,2]
[323044679,1713615057510,-1115.01,0.00015342,2]
[323044680,1713615057522,-500.0,0.00015342,2]
[323044681,1713615057533,-503.14228776,0.00015342,2]
[323044682,1713615057546,-500.0,0.00015342,2]
[323044683,1713615057557,-500.0,0.00015342,2]
[323044684,1713615057569,-500.0,0.00015342,2]
[323044685,1713615057581,-1243.7,0.00015342,2]
[323044686,1713615057594,-500.0,0.00015342,2]
[323044687,1713615057605,-500.0,0.00015342,2]
[323044688,1713615057617,-500.0,0.00015342,2]
[323044689,1713615057628,-500.0,0.00015342,2]
[323044690,1713615057639,-778.05,0.00015342,2]
[323044691,1713615057650,-610.43149575,0.00015342,2]
[323044692,1713615057662,-500.0,0.00015342,2]
[323044693,1713615057673,-500.0,0.00015342,2]
[323044694,1713615057684,-500.0,0.00015342,2]
[323044695,1713615057695,-500.0,0.00015342,2]
[323044696,1713615057706,-500.0,0.00015342,2]
[323044697,1713615057717,-500.0,0.00015342,2]
[323044698,1713615057729,-151.0,0.00015342,2]
[323044699,1713615057740,-508.04,0.00015342,2]
[323044700,1713615057751,-151.0,0.00015342,2]
[323044701,1713615057763,-500.0,0.00015342,2]
[323044702,1713615057774,-747.45,0.00015342,2]
[323044703,1713615057786,-500.0,0.00015342,2]
[323044704,1713615057797,-500.0,0.00015342,2]
[323044705,1713615057808,-500.0,0.00015342,2]
[323044706,1713615057819,-998.69,0.00015342,2]
[323044707,1713615057830,-500.0,0.00015342,2]
[323044708,1713615057841,-500.0,0.00015342,2]
[323044709,1713615057853,-500.0,0.00015342,2]
[323044710,1713615057864,-502.6119526,0.00015342,2]
[323044711,1713615057876,-649.81,0.00015342,2]
[323044712,1713615057887,-500.0,0.00015342,2]
[323044713,1713615057899,-1025.52,0.00015342,2]
[323044714,1713615057910,-151.0,0.00015342,2]
[323044715,1713615057921,-956.95,0.00015342,2]
[323044716,1713615057933,-500.0,0.00015342,2]
[323044717,1713615057945,-500.0,0.00015342,2]
[323044718,1713615057957,-151.0,0.00015342,2]
[323044719,1713615057968,-500.0,0.00015342,2]
[323044720,1713615057980,-151.0,0.00015342,2]
[323044721,1713615057990,-500.0,0.00015342,2]
[323044722,1713615058001,-500.0,0.00015342,2]
[323044723,1713615058012,-509.87,0.00015342,2]
[323044724,1713615058022,-500.0,0.00015342,2]
[323044725,1713615058033,-1130.573107,0.00015342,2]
[323044726,1713615058044,-552.91,0.00015342,2]
[323044727,1713615058054,-1886.34,0.00015342,2]
[323044728,1713615058065,-1130.573107,0.00015342,2]
[323044729,1713615058076,-500.0,0.00015342,2]
[323044730,1713615058087,-1693.65,0.00015342,2]
[323044731,1713615058097,-500.0,0.00015342,2]
[323044732,1713615058108,-500.7,0.00015342,2]
[323044733,1713615058120,-500.0,0.00015342,2]
[323044734,1713615058131,-500.0,0.00015342,2]
[323044735,1713615058142,-1130.573107,0.00015342,2]
[323044736,1713615058153,-1130.573107,0.00015342,2]
[323044737,1713615058165,-500.0,0.00015342,2]
[323044738,1713615058176,-151.0,0.00015342,2]
[323044739,1713615058187,-600.76,0.00015342,2]
[323044740,1713615058198,-1301.99,0.00015342,2]
[323044741,1713615058209,-500.0,0.00015342,2]
[323044742,1713615058220,-500.0,0.00015342,2]
[323044743,1713615058231,-500.0,0.00015342,2]
[323044744,1713615058242,-558.98,0.00015342,2]
[323044745,1713615058252,-500.0,0.00015342,2]
[323044746,1713615058263,-1123.09,0.00015342,2]
[323044747,1713615058275,-971.12,0.00015342,2]
[323044748,1713615058286,-500.0,0.00015342,2]
[323044749,1713615058303,-500.0,0.00015342,2]
[323044750,1713615058314,-500.0,0.00015342,2]
[323044751,1713615058325,-500.0,0.00015342,2]
[323044752,1713615058336,-500.0,0.00015342,2]
[323044753,1713615058347,-500.0,0.00015342,2]
[323044754,1713615058358,-500.0,0.00015342,2]
[323044755,1713615058369,-1627.69,0.00015342,2]
[323044756,1713615058383,-500.0,0.00015342,2]
[323044757,1713615058394,-500.0,0.00015342,2]
[323044758,1713615058405,-730.92,0.00015342,2]
[323044759,1713615058416,-1500.36,0.00015342,2]
[323044760,1713615058427,-817.63,0.00015342,2]
[323044761,1713615058438,-500.0,0.00015342,2]
[323044762,1713615058450,-500.0,0.00015342,2]
[323044763,1713615058461,-500.0,0.00015342,2]
[323044764,1713615058473,-500.0,0.00015342,2]
[323044765,1713615058485,-500.0,0.00015342,2]
[323044766,1713615058497,-500.0,0.00015342,2]
[323044767,1713615058509,-500.0,0.00015342,2]
[323044768,1713615058521,-500.0,0.00015342,2]
[323044769,1713615058532,-1122.67,0.00015342,2]
[323044770,1713615058543,-500.0,0.00015342,2]
[323044771,1713615058554,-500.0,0.00015342,2]
[323044772,1713615058565,-500.0,0.00015342,2]
[323044773,1713615058577,-959.94,0.00015342,2]
[323044774,1713615058589,-150.0,0.00015342,2]
[323044775,1713615058599,-1694.52,0.00015342,2]
[323044776,1713615058610,-829.71,0.00015342,2]
[323044777,1713615058621,-500.0,0.00015342,2]
[323044778,1713615058632,-501.87717457,0.00015342,2]
[323044779,1713615058643,-500.0,0.00015342,2]
[323044780,1713615058654,-500.0,0.00015342,2]
[323044781,1713615058665,-500.0,0.00015342,2]
[323044782,1713615058676,-500.0,0.00015342,2]
[323044783,1713615058686,-167.552808,0.00015342,2]
[323044784,1713615058698,-500.0,0.00015342,2]
[323044785,1713615058709,-167.552808,0.00015342,2]
[323044786,1713615058719,-500.0,0.00015342,2]
[323044787,1713615058730,-500.0,0.00015342,2]
[323044788,1713615058741,-1401.32,0.00015342,2]
[323044789,1713615058751,-905.55,0.00015342,2]
[323044790,1713615058762,-500.0,0.00015342,2]
[323044791,1713615058773,-500.0,0.00015342,2]
[323044792,1713615058783,-500.0,0.00015342,2]
[323044793,1713615058795,-537.45,0.00015342,2]
[323044794,1713615058835,-500.0,0.00015342,2]
[323044795,1713615058847,-500.0,0.00015342,2]
[323044796,1713615058858,-167.552808,0.00015342,2]
[323044797,1713615058870,-167.552808,0.00015342,2]
[323044798,1713615058880,-500.0,0.00015342,2]
[323044799,1713615058891,-500.0,0.00015342,2]
[323044800,1713615058901,-500.0,0.00015342,2]
[323044801,1713615058911,-500.0,0.00015342,2]
[323044802,1713615058923,-500.0,0.00015342,2]
[323044803,1713615058933,-500.0,0.00015342,2]
[323044804,1713615058944,-500.0,0.00015342,2]
[323044805,1713615058954,-500.0,0.00015342,2]
[323044806,1713615058964,-528.39,0.00015342,2]
[323044807,1713615058974,-612.87,0.00015342,2]
[323044808,1713615058985,-1021.58,0.00015342,2]
[323044809,1713615058995,-527.27,0.00015342,2]
[323044810,1713615059006,-1672.8,0.00015342,2]
[323044811,1713615059018,-2102.91,0.00015342,2]
[323044812,1713615059029,-500.0,0.00015342,2]
[323044813,1713615059039,-500.0,0.00015342,2]
[323044814,1713615059050,-500.0,0.00015342,2]
[323044815,1713615059060,-500.0,0.00015342,2]
[323044816,1713615059070,-500.0,0.00015342,2]
[323044817,1713615059081,-1271.86,0.00015342,2]
[323044818,1713615059091,-500.0,0.00015342,2]
[323044819,1713615059101,-500.0,0.00015342,2]
[323044820,1713615059112,-500.0,0.00015342,2]
[323044821,1713615059125,-500.0,0.00015342,2]
[323044822,1713615059136,-500.0,0.00015342,2]
[323044823,1713615059146,-500.0,0.00015342,2]
[323044824,1713615059157,-1132.15,0.00015342,2]
[323044825,1713615059168,-500.0,0.00015342,2]
[323044826,1713615059179,-500.0,0.00015342,2]
[323044827,1713615059190,-500.0,0.00015342,2]
[323044828,1713615059201,-500.0,0.00015342,2]
[323044829,1713615059211,-500.0,0.00015342,2]
[323044830,1713615059221,-500.0,0.00015342,2]
[323044831,1713615059231,-1692.18,0.00015342,2]
[323044832,1713615059242,-500.0,0.00015342,2]
[323044833,1713615059253,-888.43,0.00015342,2]
[323044834,1713615059263,-500.0,0.00015342,2]
[323044835,1713615059274,-500.0,0.00015342,2]
[323044836,1713615059285,-500.0,0.00015342,2]
[323044837,1713615059295,-311.86976,0.00015342,2]
[323044838,1713615059305,-261.27583175,0.00015342,2]
[323044839,1713615059316,-311.86976,0.00015342,2]
[323044840,1713615059326,-500.0,0.00015342,2]
[323044841,1713615059336,-495.25,0.00015342,2]
[323044842,1713615059347,-500.0,0.00015342,2]
[323044843,1713615059357,-500.0,0.00015342,2]
[323044844,1713615059368,-500.0,0.00015342,2]
[323044845,1713615059381,-151.0,0.00015342,2]
[323044846,1713615059391,-311.86976,0.00015342,2]
[323044847,1713615059402,-311.86976,0.00015342,2]
[323044848,1713615059412,-590.76,0.00015342,2]
[323044849,1713615059423,-500.0,0.00015342,2]
[323044850,1713615059434,-1590.37,0.00015342,2]
[323044851,1713615059444,-500.0,0.00015342,2]
[323044852,1713615059455,-500.0,0.00015342,2]
[323044853,1713615059467,-500.0,0.00015342,2]
[323044854,1713615059477,-500.0,0.00015342,2]
[323044855,1713615059487,-500.0,0.00015342,2]
[323044856,1713615059498,-1227.03,0.00015342,2]
[323044857,1713615059508,-500.0,0.00015342,2]
[323044858,1713615059518,-500.0,0.00015342,2]
[323044859,1713615059529,-500.0,0.00015342,2]
[323044860,1713615059540,-1649.09,0.00015342,2]
[323044861,1713615059550,-1323.41,0.00015342,2]
[323044862,1713615059561,-500.0,0.00015342,2]
[323044863,1713615059572,-430.53019888,0.00015342,2]
[323044864,1713615059582,-500.0,0.00015342,2]
[323044865,1713615059592,-500.0,0.00015342,2]
[323044866,1713615059602,-500.0,0.00015342,2]
[323044867,1713615059613,-742.33,0.00015342,2]
[323044868,1713615059623,-500.0,0.00015342,2]
[323044869,1713615059634,-583.96,0.00015342,2]
[323044870,1713615059646,-621.99,0.00015342,2]
[323044871,1713615059658,-500.0,0.00015342,2]
[323044872,1713615059671,-500.0,0.00015342,2]
[323044873,1713615059683,-500.0,0.00015342,2]
[323044874,1713615059695,-1318.12,0.00015342,2]
[323044875,1713615059708,-1260.32,0.00015342,2]
[323044876,1713615059721,-500.0,0.00015342,2]
[323044877,1713615059734,-500.0,0.00015342,2]
[323044878,1713615059747,-623.84,0.00015342,2]
[323044879,1713615059760,-500.0,0.00015342,2]
[323044880,1713615059772,-500.0,0.00015342,2]
[323044881,1713615059784,-500.0,0.00015342,2]
[323044882,1713615059796,-569.73,0.00015342,2]
[323044883,1713615059808,-183.110084,0.00015342,2]
[323044884,1713615059819,-500.0,0.00015342,2]
[323044885,1713615059832,-500.0,0.00015342,2]
[323044886,1713615059845,-151.0,0.00015342,2]
[323044887,1713615059858,-151.0,0.00015342,2]
[323044888,1713615059871,-1266.83,0.00015342,2]
[323044889,1713615059883,-183.110084,0.00015342,2]
[323044890,1713615059894,-2550.54,0.00015342,2]
[323044891,1713615059904,-183.110084,0.00015342,2]
[323044892,1713615059915,-823.88,0.00015342,2]
[323044893,1713615059925,-500.0,0.00015342,2]
[323044894,1713615059935,-500.0,0.00015342,2]
[323044895,1713615059946,-758.17,0.00015342,2]
[323044896,1713615059956,-502.31,0.00015342,2]
[323044897,1713615059968,-500.0,0.00015342,2]
[323044898,1713615059978,-500.0,0.00015342,2]
[323044899,1713615059988,-500.0,0.00015342,2]
[323044900,1713615059998,-827.03,0.00015342,2]
[323044901,1713615060008,-500.0,0.00015342,2]
[323044902,1713615060019,-153.50786131,0.00015342,2]
[323044903,1713615060030,-500.0,0.00015342,2]
[323044905,1713615060562,-529.02,0.00015342,2]
[323044906,1713615060583,-1256.68,0.00015342,2]
[323044907,1713615060611,-1390.79,0.00015342,2]
[323044908,1713615060639,-1130.11,0.00015342,2]
[323044909,1713615060653,-270.8853844,0.00015342,2]
[323044910,1713615060665,-500.0,0.00015342,2]
[323044911,1713615060674,-981.91,0.00015342,2]
[323044912,1713615060683,-500.0,0.00015342,2]
[323044913,1713615060691,-500.0,0.00015342,2]
[323044914,1713615060701,-635.76,0.00015342,2]
[323044915,1713615060710,-500.0,0.00015342,2]
[323044916,1713615060720,-719.36,0.00015342,2]
[323044917,1713615060730,-801.29,0.00015342,2]
[323044918,1713615060740,-500.0,0.00015342,2]
[323044919,1713615060750,-500.0,0.00015342,2]
[323044920,1713615060761,-467.66437162,0.00015342,2]
[323044921,1713615060771,-3737.3,0.00015342,2]
[323044922,1713615060782,-162.437271,0.00015342,2]
[323044923,1713615060793,-1524.43,0.00015342,2]
[323044924,1713615060803,-2095.32,0.00015342,2]
[323044925,1713615060814,-500.0,0.00015342,2]
[323044926,1713615060823,-500.0,0.00015342,2]
[323044927,1713615060834,-723.57,0.00015342,2]
[323044928,1713615060845,-13422.31,0.00015342,2]
[323044929,1713615060855,-969.36,0.00015342,2]
[323044930,1713615060867,-500.0,0.00015342,2]
[323044931,1713615060877,-500.0,0.00015342,2]
[323044932,1713615060887,-500.0,0.00015342,2]
[323044933,1713615060899,-22452.43,0.00015342,2]
[323044934,1713615060911,-500.0,0.00015342,2]
[323044935,1713615060921,-151.0,0.00015342,2]
[323044936,1713615060932,-500.0,0.00015342,2]
[323044937,1713615060942,-500.0,0.00015342,2]
[323044938,1713615060952,-1307.46,0.00015342,2]
[323044939,1713615060963,-1605.68,0.00015342,2]
[323044940,1713615060973,-635.04,0.00015342,2]
[323044941,1713615060984,-279.73803663,0.00015342,2]
[323044942,1713615060995,-500.0,0.00015342,2]
[323044943,1713615061006,-915.54,0.00015342,2]
[323044944,1713615061015,-500.0,0.00015342,2]
[323044945,1713615061026,-500.0,0.00015342,2]
[323044946,1713615061036,-500.0,0.00015342,2]
[323044947,1713615061046,-500.0,0.00015342,2]
[323044948,1713615061057,-500.0,0.00015342,2]
[323044949,1713615061068,-852.82,0.00015342,2]
[323044950,1713615061078,-500.0,0.00015342,2]
[323044951,1713615061089,-1895.04,0.00015342,2]
[323044952,1713615061100,-500.0,0.00015342,2]
[323044953,1713615061110,-1231.12,0.00015342,2]
[323044954,1713615061122,-1076.16,0.00015342,2]
[323044955,1713615061131,-500.0,0.00015342,2]
[323044956,1713615061141,-639.54,0.00015342,2]
[323044957,1713615061151,-1535.09,0.00015342,2]
[323044958,1713615061162,-500.0,0.00015342,2]
[323044959,1713615061176,-1591.9,0.00015342,2]
[323044960,1713615061185,-500.0,0.00015342,2]
[323044961,1713615061196,-26145.17,0.00015342,2]
[323044962,1713615061207,-855.47,0.00015342,2]
[323044963,1713615061216,-500.0,0.00015342,2]
[323044964,1713615061228,-151.0,0.00015342,2]
[323044965,1713615061240,-500.0,0.00015342,2]
[323044966,1713615061251,-151.0,0.00015342,2]
[323044967,1713615061261,-151.0,0.00015342,2]
[323044968,1713615061271,-151.0,0.00015342,2]
[323044969,1713615061282,-500.0,0.00015342,2]
[323044970,1713615061292,-500.0,0.00015342,2]
[323044971,1713615061303,-500.0,0.00015342,2]
[323044972,1713615061313,-500.0,0.00015342,2]
[323044973,1713615061324,-500.0,0.00015342,2]
[323044974,1713615061334,-2882.99,0.00015342,2]
[323044975,1713615061345,-1490.38,0.00015342,2]
[323044976,1713615061356,-500.0,0.00015342,2]
[323044977,1713615061366,-500.0,0.00015342,2]
[323044978,1713615061376,-2196.24,0.00015342,2]
[323044979,1713615061387,-630.97,0.00015342,2]
[323044980,1713615061397,-2445.79,0.00015342,2]
[323044981,1713615061407,-500.0,0.00015342,2]
[323044982,1713615061419,-151.0,0.00015342,2]
[323044983,1713615061428,-151.0,0.00015342,2]
[323044984,1713615061438,-856.42,0.00015342,2]
[323044985,1713615061447,-2960.02,0.00015342,2]
[323044986,1713615061459,-500.0,0.00015342,2]